bitfinex-derivatives/quotes_SOLF0:USTF0_20240827
["timestamp","ask_amount","ask_price","bid_price","bid_amount"]
[1724769015646,1.2647,155.16,155.11,11.1332]
[1724769015842,0.04909078,155.15,155.12,0.04089563]
[1724769016049,3.27159078,155.15,155.12,3.26399563]
[1724769016247,3.27159078,155.15,155.12,0.04089563]
[1724769016248,0.04909078,155.15,155.12,0.04089563]
[1724769017452,0.04909078,155.15,155.12,7.95089563]
[1724769018858,3.27159078,155.15,155.12,7.95089563]
[1724769019057,0.04909078,155.15,155.14,7.91]
[1724769020063,0.04909078,155.15,155.14,11.1327]
[1724769020354,1.2898,155.23,155.14,7.91]
[1724769020355,3.8934,155.23,155.14,7.91]
[1724769020561,3.8934,155.23,155.19,3.2216]
[1724769020749,1.3082,155.23,155.2,7.91]
[1724769021152,1.35336499,155.23,155.2,11.1752764]
[1724769021348,1.35336499,155.23,155.2,7.9538764]
[1724769021553,4.57416499,155.23,155.2,0.0438764]
[1724769021847,1.35336499,155.23,155.2,0.0438764]
[1724769022254,4.57416499,155.23,155.2,7.9538764]
[1724769022561,0.04516499,155.23,155.2,0.0438764]
[1724769022756,0.04516499,155.23,155.2,3.2652764]
[1724769022958,0.04516499,155.23,155.2,0.0438764]
[1724769024463,3.26616499,155.23,155.2,0.0438764]
[1724769024759,0.04516499,155.23,155.2,0.0438764]
[1724769024959,3.2212,155.21,155.2,0.0438764]
[1724769025359,3.2217,155.19,155.0,6.451]
[1724769025560,19.79,155.2,155.1,30.66312252]
[1724769025761,19.79,155.2,155.12,19.79]
[1724769026259,21.0522,155.22,155.12,19.79]
[1724769026459,0.04311137,155.18,155.14,0.0416108]
[1724769026960,0.04311137,155.18,155.15,3.2225]
[1724769027755,0.04311137,155.18,155.14,0.0416108]
[1724769028361,3.2224,155.16,155.14,0.0416108]
[1724769028756,1.32461137,155.18,155.14,0.0416108]
[1724769028960,3.2221,155.17,155.14,0.0416108]
[1724769029569,3.2223,155.16,155.14,0.0416108]
[1724769029767,0.04311137,155.18,155.14,0.0416108]
[1724769030165,0.04311137,155.18,155.17,3.2221]
[1724769031373,0.04311137,155.18,155.16,3.2222]
[1724769032468,0.04311137,155.18,155.14,19.8316108]
[1724769032469,0.04311137,155.18,155.17,3.2221]
[1724769032665,0.04311137,155.18,155.17,23.0121]
[1724769035072,2.6048,155.26,155.17,19.79]
[1724769035273,2.6048,155.26,155.2,19.79]
[1724769035469,2.6048,155.26,155.18,19.79]
[1724769036174,19.83781545,155.24,155.2,0.0408518]
[1724769036576,3.2209,155.23,155.2,0.0408518]
[1724769038073,3.2211,155.22,155.2,0.0408518]
[1724769038276,19.83781545,155.24,155.2,0.0408518]
[1724769038476,19.79,155.23,155.2,0.0408518]
[1724769038781,3.2212,155.21,155.2,0.0408518]
[1724769039778,0.04781545,155.24,155.2,0.0408518]
[1724769039779,19.83781545,155.24,155.2,0.0408518]
[1724769040279,3.2212,155.21,155.2,0.0408518]
[1724769041377,3.2211,155.22,155.2,0.0408518]
[1724769042984,3.2212,155.21,155.2,0.0408518]
[1724769043793,19.79,155.22,155.12,7.4882]
[1724769043794,3.2217,155.19,155.12,7.4882]
[1724769043990,7.93,155.17,155.11,7.93]
[1724769044196,3.2226,155.15,155.1,6.26]
[1724769044392,7.93,155.16,155.09,7.93]
[1724769044699,0.04071054,155.14,155.12,3.223]
[1724769045094,0.04071054,155.14,155.11,7.97152094]
[1724769045398,0.04071054,155.14,155.12,3.2229]
[1724769045895,0.04071054,155.14,155.12,11.1529]
[1724769046395,0.04071054,155.14,155.12,3.2229]
[1724769047398,0.04071054,155.14,155.13,3.2229]
[1724769048294,0.04071054,155.14,155.12,3.223]
[1724769048696,0.04071054,155.14,155.11,0.04152094]
[1724769049294,0.04071054,155.14,155.13,3.2229]
[1724769049898,3.2217,155.19,155.15,3.2223]
[1724769050294,1.2496,155.2,155.13,19.81]
[1724769051003,0.04506441,155.18,155.15,0.04428877]
[1724769051502,0.04506441,155.18,155.15,3.26658877]
[1724769056399,0.04506441,155.18,155.15,0.04428877]
[1724769056795,0.04506441,155.18,155.16,3.2221]
[1724769056993,0.04506441,155.18,155.15,19.85428877]
[1724769057400,0.04506441,155.18,155.16,3.2221]
[1724769058097,0.04506441,155.18,155.15,3.26668877]
[1724769058296,0.04506441,155.18,155.15,0.04428877]
[1724769058906,0.04506441,155.18,155.15,3.26658877]
[1724769059206,0.04506441,155.18,155.15,0.04428877]
[1724769059906,0.04506441,155.18,155.16,3.2221]
[1724769060206,0.04506441,155.18,155.15,0.04428877]
[1724769061297,0.04506441,155.18,155.16,3.2223]
[1724769061497,0.04506441,155.18,155.15,19.85428877]
[1724769061697,0.04506441,155.18,155.17,19.81]
[1724769062011,0.04506441,155.18,155.17,23.0321]
[1724769062305,0.04506441,155.18,155.17,3.2221]
[1724769062507,0.04506441,155.18,155.15,19.85428877]
[1724769063413,3.8223,155.24,155.16,19.81]
[1724769063414,1.2888,155.24,155.16,19.81]
[1724769063611,1.2888,155.24,155.19,19.81]
[1724769063908,2.5607,155.3,155.21,19.81]
[1724769064107,2.5607,155.3,155.23,19.81]
[1724769064317,2.5607,155.3,155.24,19.81]
[1724769064508,4.4682,155.32,155.26,3.22]
[1724769064704,4.4682,155.32,155.25,3.1922214]
[1724769065913,1.2491,155.32,155.25,0.04265316]
[1724769066513,2.5108,155.32,155.25,0.04265316]
[1724769066915,19.81,155.31,155.25,0.04265316]
[1724769067414,19.81,155.28,155.25,0.04265316]
[1724769068206,19.81,155.26,155.2,6.24]
[1724769068413,19.81,155.26,155.16,26.03]
[1724769068611,1.3219,155.25,155.16,26.03]
[1724769068912,1.3219,155.25,155.18,19.81]
[1724769068913,4.5425,155.25,155.18,19.81]
[1724769069113,4.5425,155.25,155.18,22.9684541]
[1724769069308,0.04126039,155.23,155.2,0.04280872]
[1724769069508,0.04126039,155.23,155.21,3.2212]
[1724769069714,0.04126039,155.23,155.2,19.85280872]
[1724769070017,3.2196,155.29,155.22,19.81]
[1724769070516,1.3219,155.31,155.24,19.81]
[1724769071114,1.3219,155.31,155.26,0.04649345]
[1724769071709,4.5411,155.31,155.26,3.26649345]
[1724769072110,4.5411,155.31,155.26,0.04649345]
[1724769072312,1.3219,155.31,155.26,19.85649345]
[1724769072707,3.2189,155.33,155.28,3.2196]
[1724769072909,3.2189,155.33,155.29,0.04360964]
[1724769073220,1.319,155.34,155.29,0.04360964]
[1724769073410,3.219,155.32,155.29,0.04360964]
[1724769073612,1.319,155.34,155.29,3.26310964]
[1724769074115,3.2188,155.33,155.29,3.26310964]
[1724769074507,3.2188,155.33,155.29,0.04360964]
[1724769074918,21.022,155.35,155.31,3.219]
[1724769074919,4.4304,155.35,155.31,3.219]
[1724769075618,3.2185,155.34,155.31,3.219]
[1724769075819,1.212,155.35,155.3,3.2193]
[1724769076822,3.2187,155.33,155.3,3.2193]
[1724769077315,3.2187,155.33,155.29,0.04360964]
[1724769077525,3.2191,155.32,155.29,3.26300964]
[1724769077911,19.81,155.33,155.29,0.04360964]
[1724769078520,3.2191,155.32,155.29,0.04360964]
[1724769078718,19.81,155.33,155.29,0.04360964]
[1724769078923,21.022,155.35,155.3,3.2193]
[1724769079722,21.022,155.35,155.29,0.04360964]
[1724769080515,3.2188,155.33,155.29,3.26300964]
[1724769081119,3.219,155.32,155.29,3.26300964]
[1724769081319,19.81,155.34,155.29,0.04360964]
[1724769081512,1.212,155.35,155.29,0.04360964]
[1724769081513,19.81,155.31,155.29,0.04360964]
[1724769082221,3.2194,155.3,155.29,0.04360964]
[1724769082423,0.04733671,155.28,155.2,6.22]
[1724769082617,0.04733671,155.28,155.27,19.81]
[1724769082840,22.3693,155.38,155.27,19.81]
[1724769083014,22.3693,155.38,155.3,19.81]
[1724769083415,3.219,155.34,155.29,3.2197]
[1724769083728,3.219,155.34,155.3,19.81]
[1724769083912,3.219,155.34,155.3,19.85547167]
[1724769085017,3.2187,155.35,155.3,23.07497167]
[1724769085217,3.2187,155.35,155.3,19.85547167]
[1724769086020,3.2187,155.35,155.3,23.07507167]
[1724769086421,3.2189,155.34,155.3,23.07507167]
[1724769086822,2.5593,155.38,155.3,23.07507167]
[1724769087023,3.2188,155.35,155.3,23.07507167]
[1724769087427,2.5593,155.38,155.31,3.2195]
[1724769087626,5.7775,155.38,155.33,19.81]
[1724769087819,3.2369421,155.42,155.34,0.04442401]
[1724769088128,1.2969,155.43,155.35,19.81]
[1724769088330,4.54285865,155.43,155.37,0.04707296]
[1724769089623,3.2178,155.4,155.37,0.04707296]
[1724769090327,3.2179,155.39,155.37,0.04707296]
[1724769091322,3.2177,155.4,155.37,0.04707296]
[1724769093023,4.54285865,155.43,155.37,0.04707296]
[1724769093227,3.2178,155.39,155.37,0.04707296]
[1724769093428,4.54285865,155.43,155.37,0.04707296]
[1724769093623,4.54285865,155.43,155.37,19.85707296]
[1724769093824,3.2175,155.41,155.37,23.07517296]
[1724769094427,3.2176,155.4,155.37,23.07517296]
[1724769095326,3.2175,155.41,155.38,3.218]
[1724769097327,3.2175,155.41,155.39,3.2178]
[1724769097821,3.2173,155.42,155.39,3.2178]
[1724769098219,1.2969,155.43,155.4,3.2176]
[1724769098619,1.2969,155.43,155.39,19.81]
[1724769098833,1.2969,155.43,155.4,3.2176]
[1724769099337,1.2969,155.43,155.39,23.0277]
[1724769099835,3.2172,155.42,155.39,23.0277]
[1724769100035,1.2969,155.43,155.39,23.0277]
[1724769100331,1.2969,155.43,155.39,3.2177]
[1724769100523,3.2174,155.42,155.39,3.2177]
[1724769100725,3.2174,155.42,155.38,3.2179]
[1724769101128,6.2,155.5,155.41,32.81]
[1724769101435,9.6389,155.63,155.46,19.81]
[1724769101436,3.21865345,155.52,155.46,19.81]
[1724769101627,3.215,155.53,155.48,3.2158]
[1724769101929,3.26017407,155.52,155.47,0.04882923]
[1724769102133,1.2482,155.54,155.47,0.04882923]
[1724769102331,1.2482,155.54,155.48,19.81]
[1724769102828,4.4631,155.54,155.5,3.2154]
[1724769103128,4.51131174,155.54,155.5,0.04655272]
[1724769103828,19.81,155.53,155.44,19.81]
[1724769104024,19.81,155.53,155.42,19.81]
[1724769104225,20.55175234,155.52,155.42,26.01]
[1724769104435,19.81,155.52,155.42,19.81]
[1724769104635,3.2159,155.49,155.45,3.2164]
[1724769104932,3.2159,155.49,155.45,0.04268872]
[1724769104933,0.04456352,155.49,155.45,0.04268872]
[1724769105325,0.04456352,155.49,155.46,3.2163]
[1724769105531,0.04456352,155.49,155.45,0.04268872]
[1724769105825,0.04456352,155.49,155.46,3.2163]
[1724769106029,0.04456352,155.49,155.45,0.04268872]
[1724769106430,0.04456352,155.49,155.46,19.81]
[1724769107034,0.04456352,155.49,155.47,3.2162]
[1724769107436,0.04456352,155.49,155.46,19.81]
[1724769107739,0.04456352,155.49,155.48,3.216]
[1724769108239,0.04456352,155.49,155.46,19.81]
[1724769108240,0.04456352,155.49,155.47,3.216]
[1724769108932,0.04456352,155.49,155.46,19.81]
[1724769108933,0.04456352,155.49,155.45,0.04268872]
[1724769109726,0.04456352,155.49,155.46,3.2163]
[1724769109926,0.04456352,155.49,155.45,0.04268872]
[1724769110231,19.81,155.48,155.45,0.04268872]
[1724769110432,1.2873,155.48,155.45,0.04268872]
[1724769111432,4.5033,155.48,155.45,3.25908872]
[1724769111736,4.5033,155.48,155.45,0.04268872]
[1724769112060,1.2873,155.48,155.45,0.04268872]
[1724769112631,3.2163,155.47,155.45,0.04268872]
[1724769112826,1.2873,155.48,155.45,0.04268872]
[1724769113028,3.2163,155.47,155.45,0.04268872]
[1724769113232,1.2873,155.48,155.45,0.04268872]
[1724769113739,4.5034,155.48,155.45,3.25928872]
[1724769114441,1.2873,155.48,155.45,0.04268872]
[1724769115430,3.2164,155.46,155.45,0.04268872]
[1724769116141,3.2163,155.47,155.45,0.04268872]
[1724769116343,1.2873,155.48,155.45,0.04268872]
[1724769116838,3.16078445,155.47,155.37,19.81]
[1724769117041,3.16078445,155.47,155.37,26.01]
[1724769117042,22.97078445,155.47,155.37,26.01]
[1724769117445,3.2168,155.44,155.4,3.2176]
[1724769117641,22.97078445,155.47,155.4,3.2176]
[1724769117837,19.85682041,155.45,155.42,0.04377924]
[1724769118040,19.81,155.43,155.33,26.01]
[1724769118238,1.3134,155.42,155.33,26.01]
[1724769118434,3.2175,155.41,155.38,3.218]
[1724769119134,0.04134299,155.41,155.39,3.2178]
[1724769119740,0.04134299,155.41,155.4,3.2176]
[1724769119944,0.04134299,155.41,155.38,0.04124265]
[1724769120340,0.04134299,155.41,155.39,3.2177]
[1724769121048,0.04134299,155.41,155.4,3.2176]
[1724769121636,0.04134299,155.41,155.38,0.04124265]
[1724769121637,0.04134299,155.41,155.39,3.2178]
[1724769122355,0.04134299,155.41,155.4,3.2176]
[1724769124455,0.04134299,155.41,155.38,0.04124265]
[1724769124666,1.2356,155.46,155.33,19.81]
[1724769124667,19.81,155.42,155.33,19.81]
[1724769124965,19.81,155.42,155.33,23.029]
[1724769125154,19.81,155.42,155.33,19.81]
[1724769125558,3.218,155.39,155.35,3.2186]
[1724769125759,3.26557633,155.39,155.35,3.26061021]
[1724769126764,0.04757633,155.39,155.36,3.2184]
[1724769126952,0.04757633,155.39,155.35,0.04201021]
[1724769127462,0.04757633,155.39,155.37,3.2181]
[1724769128655,0.04757633,155.39,155.36,3.2184]
[1724769128860,0.04757633,155.39,155.35,0.04201021]
[1724769129253,0.04757633,155.39,155.35,3.26051021]
[1724769129254,3.26537633,155.39,155.35,3.26051021]
[1724769129454,0.04757633,155.39,155.35,0.04201021]
[1724769130860,0.04757633,155.39,155.36,24.73]
[1724769131060,0.04757633,155.39,155.37,3.19246861]
[1724769131362,0.04757633,155.39,155.38,3.218]
[1724769132867,0.04757633,155.39,155.38,27.948]
[1724769133054,0.01107633,155.39,155.38,27.948]
[1724769133359,2.5444,155.48,155.38,24.73]
[1724769133561,3.2165,155.46,155.38,24.73]
[1724769133861,3.2165,155.46,155.43,3.217]
[1724769134269,3.26544342,155.46,155.43,3.26137166]
[1724769134565,0.04894342,155.46,155.43,3.26137166]
[1724769134766,0.04894342,155.46,155.43,0.04437166]
[1724769134968,0.04894342,155.46,155.43,24.77437166]
[1724769135363,0.04894342,155.46,155.45,3.2166]
[1724769135558,0.04894342,155.46,155.43,24.77437166]
[1724769136767,0.04894342,155.46,155.45,3.2166]
[1724769138566,0.04894342,155.46,155.45,27.9466]
[1724769139169,0.04894342,155.46,155.45,3.2166]
[1724769141467,0.04894342,155.46,155.43,0.04437166]
[1724769143279,3.26544342,155.46,155.43,0.04437166]
[1724769145175,0.04894342,155.46,155.43,3.26127166]
[1724769145875,0.04894342,155.46,155.44,3.2166]
[1724769146474,0.04894342,155.46,155.43,19.80437166]
[1724769147174,0.04894342,155.46,155.45,3.2166]
[1724769154186,0.04894342,155.46,155.43,0.04437166]
[1724769154576,3.2168,155.45,155.43,0.04437166]
[1724769154973,0.04894342,155.46,155.43,0.04437166]
[1724769155172,3.26544342,155.46,155.43,0.04437166]
[1724769155481,0.04894342,155.46,155.43,0.04437166]
[1724769156475,3.26544342,155.46,155.43,0.04437166]
[1724769158481,3.2167,155.45,155.43,0.04437166]
[1724769158684,0.04894342,155.46,155.43,0.04437166]
[1724769159286,0.04894342,155.46,155.44,3.2168]
[1724769160087,0.04894342,155.46,155.45,3.2166]
[1724769168796,1.2283,155.51,155.49,3.2156]
[1724769170393,0.04623914,155.52,155.48,19.80355343]
[1724769171694,0.04623914,155.52,155.51,3.2153]
[1724769178102,0.04623914,155.52,155.5,3.2155]
[1724769178603,0.04623914,155.52,155.51,3.2153]
[1724769179199,0.04623914,155.52,155.5,3.2155]
[1724769179503,0.04623914,155.52,155.48,0.04355343]
[1724769179701,3.2154,155.51,155.48,0.04355343]
[1724769179899,5.7844,155.51,155.48,0.04355343]
[1724769180507,2.569,155.51,155.48,0.04355343]
[1724769180905,5.7844,155.51,155.48,0.04355343]
[1724769181900,5.7844,155.51,155.48,3.25955343]
[1724769182105,2.569,155.51,155.48,3.25955343]
[1724769182602,5.7843,155.51,155.48,3.25955343]
[1724769184106,2.569,155.51,155.49,3.2157]
[1724769184408,2.569,155.51,155.48,0.04355343]
[1724769184601,2.569,155.51,155.49,3.2156]
[1724769186295,5.7844,155.51,155.48,3.25945343]
[1724769186599,2.569,155.51,155.48,0.04355343]
[1724769186799,2.569,155.51,155.49,3.2156]
[1724769187702,0.04623914,155.52,155.51,3.2153]
[1724769187902,0.04623914,155.52,155.48,0.04355343]
[1724769188204,0.04623914,155.52,155.51,3.2153]
[1724769191807,224.0,155.65,155.5,19.76]
[1724769192007,2.04240064,155.64,155.56,19.76]
[1724769192210,0.74110064,155.63,155.56,19.76]
[1724769192804,3.2136,155.6,155.58,0.04948314]
[1724769193011,0.03098246,155.61,155.58,0.04948314]
[1724769194013,0.03098246,155.61,155.53,19.76]
[1724769194210,3.2139,155.59,155.55,3.2144]
[1724769194415,1.2548,155.58,155.55,3.2144]
[1724769194822,1.2548,155.58,155.56,3.2143]
[1724769195215,1.2548,155.58,155.55,0.04441941]
[1724769195422,1.2548,155.58,155.56,3.2143]
[1724769196116,0.04582514,155.59,155.56,3.2143]
[1724769196321,0.04582514,155.59,155.57,3.2141]
[1724769196521,0.04582514,155.59,155.55,0.04441941]
[1724769196721,6.71245582,155.76,155.58,19.76]
[1724769196925,1.2274,155.69,155.64,19.76]
[1724769197127,1.2274,155.69,155.66,19.76]
[1724769197312,1.2274,155.69,155.66,22.9722]
[1724769197718,1.26204045,155.69,155.66,0.04671068]
[1724769198624,1.26204045,155.69,155.67,3.212]
[1724769198823,0.03464045,155.69,155.66,19.80671068]
[1724769200515,0.03464045,155.69,155.68,22.9718]
[1724769201328,2.563,155.74,155.71,3.2111]
[1724769201525,1.2554,155.74,155.71,19.76]
[1724769202225,1.2627,155.79,155.71,19.80950924]
[1724769202424,911.0,155.96,155.75,19.76]
[1724769202425,19.76,155.85,155.75,19.76]
[1724769202633,3.2094,155.8,155.78,0.04094859]
[1724769202932,1.2477,155.81,155.78,0.04094859]
[1724769203329,2.5336,155.84,155.79,19.76]
[1724769204230,2.5336,155.84,155.78,0.04094859]
[1724769205328,0.73946273,155.83,155.78,0.04094859]
[1724769205534,2.5336,155.84,155.78,0.04094859]
[1724769205732,5.7422,155.84,155.78,0.04094859]
[1724769206331,2.5336,155.84,155.78,0.04094859]
[1724769206732,3.2091,155.82,155.78,0.04094859]
[1724769207239,2.5336,155.84,155.78,0.04094859]
[1724769207531,0.73950478,155.83,155.78,0.04094859]
[1724769207929,2.5336,155.84,155.78,0.04094859]
[1724769208124,0.73946631,155.83,155.78,0.04094859]
[1724769208429,3.2091,155.82,155.78,0.04094859]
[1724769208636,2.5336,155.84,155.78,0.04094859]
[1724769208840,0.73950412,155.83,155.78,0.04094859]
[1724769209827,3.2095,155.8,155.78,0.04094859]
[1724769210347,2.5336,155.84,155.78,0.04094859]
[1724769210531,0.73950458,155.83,155.78,0.04094859]
[1724769210844,3.2093,155.81,155.78,0.04094859]
[1724769212437,2.5336,155.84,155.78,0.04094859]
[1724769212740,0.73950417,155.83,155.78,0.04094859]
[1724769213040,3.2095,155.8,155.78,0.04094859]
[1724769213549,3.2092,155.81,155.78,0.04094859]
[1724769214031,3.209,155.82,155.79,3.2094]
[1724769214230,3.209,155.82,155.78,0.04094859]
[1724769214539,2.5336,155.84,155.78,0.04094859]
[1724769214744,0.7394965,155.83,155.78,0.04094859]
[1724769214931,2.5336,155.84,155.78,0.04094859]
[1724769215132,3.2088,155.83,155.79,3.2094]
[1724769215532,1.2477,155.84,155.8,3.2092]
[1724769215830,1.2477,155.84,155.78,0.04094859]
[1724769216235,3.2093,155.81,155.78,0.04094859]
[1724769216839,3.2091,155.82,155.78,0.04094859]
[1724769217044,1.2477,155.84,155.78,0.04094859]
[1724769217245,3.2092,155.81,155.78,3.25054859]
[1724769218637,1.2477,155.84,155.78,0.04094859]
[1724769219044,3.2094,155.8,155.78,0.04094859]
[1724769219844,3.2096,155.79,155.78,0.04094859]
[1724769221249,1.2477,155.84,155.78,0.04094859]
[1724769222645,1.2477,155.84,155.79,24.65]
[1724769223042,3.2089,155.83,155.79,27.8594]
[1724769223245,1.2477,155.84,155.79,27.8594]
[1724769223443,1.2477,155.84,155.79,24.65]
[1724769223644,3.2091,155.82,155.79,24.65]
[1724769223852,1.2477,155.84,155.79,24.65]
[1724769224552,3.2091,155.82,155.79,27.8595]
[1724769224757,1.2477,155.84,155.78,0.04094859]
[1724769225646,3.2095,155.8,155.78,0.04094859]
[1724769226054,1.2477,155.84,155.78,0.04094859]
[1724769226842,3.2093,155.81,155.78,3.25064859]
[1724769227249,1.2477,155.84,155.78,19.76094859]
[1724769227752,1.2477,155.84,155.8,19.72]
[1724769227950,4.4563,155.84,155.81,3.209]
[1724769228750,3.2088,155.83,155.81,3.209]
[1724769229452,3.209,155.82,155.79,3.2095]
[1724769229659,3.209,155.82,155.78,19.76094859]
[1724769229957,1.2477,155.84,155.81,3.2091]
[1724769229958,4.4563,155.84,155.81,3.2091]
[1724769230261,4.4563,155.84,155.78,0.04094859]
[1724769230262,1.2477,155.84,155.78,0.04094859]
[1724769230454,3.2091,155.82,155.79,3.2095]
[1724769230650,1.2477,155.84,155.79,3.2095]
[1724769231159,3.209,155.82,155.79,3.2095]
[1724769231356,3.209,155.82,155.78,19.76094859]
[1724769231357,1.2477,155.84,155.81,19.72]
[1724769231553,1.2477,155.84,155.83,19.72]
[1724769231860,1.2477,155.84,155.73,6.06]
[1724769231861,1.2477,155.84,155.82,0.04082798]
[1724769232052,1.2477,155.84,155.81,22.97143155]
[1724769232257,1.2477,155.84,155.81,19.76243155]
[1724769232656,1.2627,155.86,155.81,22.97143155]
[1724769233164,3.2086,155.84,155.81,22.97153155]
[1724769233663,1.2627,155.86,155.83,19.72]
[1724769234051,4.471,155.86,155.83,19.72]
[1724769234255,4.471,155.86,155.83,3.2087]
[1724769234857,3.2083,155.85,155.82,3.2089]
[1724769235266,1.2627,155.86,155.82,3.2089]
[1724769235561,3.2084,155.85,155.82,3.2089]
[1724769237259,3.2086,155.84,155.81,22.97143155]
[1724769237566,3.2086,155.84,155.81,3.25143155]
[1724769238061,3.2089,155.82,155.81,0.04243155]
[1724769239668,3.2088,155.83,155.81,0.04243155]
[1724769240263,3.2089,155.82,155.81,0.04243155]
[1724769240466,24.09477791,155.82,155.7,74.60865046]
[1724769240762,19.72,155.81,155.72,19.72]
[1724769241071,19.72,155.79,155.7,19.72]
[1724769241369,1.248,155.78,155.49,6.70568683]
[1724769241569,19.72,155.73,155.63,19.72]
[1724769241860,3.2114,155.7,155.65,3.2122]
[1724769242267,1.2161,155.72,155.62,19.72]
[1724769242666,0.04138878,155.69,155.65,0.04643433]
[1724769243160,3.2122,155.66,155.65,0.04643433]
[1724769243367,0.04138878,155.69,155.65,0.04643433]
[1724769243666,3.212,155.68,155.65,0.04643433]
[1724769244058,19.72,155.68,155.6,19.72]
[1724769244265,3.2123,155.66,155.6,3.2133]
[1724769244471,19.72,155.68,155.58,19.72]
[1724769244866,19.72,155.65,155.56,19.72]
[1724769245066,0.04291337,155.62,155.59,0.04341266]
[1724769245371,19.72,155.61,155.53,19.72]
[1724769245967,3.2135,155.61,155.54,3.2147]
[1724769246170,1.2457,155.62,155.55,24.69]
[1724769246474,0.04550288,155.6,155.59,3.2137]
[1724769246664,1.2767,155.68,155.57,0.04481063]
[1724769246866,1.2767,155.68,155.56,6.04]
[1724769246867,1.2767,155.68,155.56,7.3595]
[1724769247271,1.2823,155.7,155.56,10.62886676]
[1724769247463,1.2823,155.7,155.62,3.2129]
[1724769247670,0.04901782,155.68,155.65,24.69]
[1724769247871,0.04709952,155.68,155.65,24.69]
[1724769248071,0.04709952,155.68,155.66,3.2122]
[1724769248272,0.04709952,155.68,155.65,24.69]
[1724769248582,0.04709952,155.68,155.64,0.04692136]
[1724769249072,24.69,155.67,155.56,24.69]
[1724769249275,24.69,155.65,155.54,30.73]
[1724769249472,24.69,155.65,155.54,24.69]
[1724769249667,3.2127,155.64,155.58,3.2137]
[1724769249869,3.2127,155.64,155.56,24.69]
[1724769250068,0.0462393,155.62,155.58,0.04360491]
[1724769250273,0.0462393,155.62,155.58,24.73924557]
[1724769250470,0.0462393,155.62,155.6,24.69]
[1724769250772,4.4937,155.7,155.6,49.38]
[1724769251079,1.2823,155.7,155.64,24.69]
[1724769251271,1.2823,155.7,155.67,3.212]
[1724769251467,1.2823,155.7,155.64,24.69]
[1724769251672,0.04564617,155.69,155.65,0.04932443]
[1724769251874,3.25734617,155.69,155.65,0.04932443]
[1724769252079,0.04564617,155.69,155.65,0.04932443]
[1724769252278,24.73564617,155.69,155.65,0.04932443]
[1724769252571,3.2122,155.67,155.65,0.04932443]
[1724769252775,24.73564617,155.69,155.65,0.04932443]
[1724769252972,24.73564617,155.69,155.61,3.2131]
[1724769253180,3.2122,155.66,155.61,3.2131]
[1724769253379,24.69,155.69,155.59,24.69]
[1724769253771,3.212,155.68,155.57,6.04]
[1724769253971,0.04332187,155.64,155.62,3.2129]
[1724769254379,0.04332187,155.64,155.63,3.2129]
[1724769257574,0.04332187,155.64,155.61,0.048792]
[1724769259380,0.04332187,155.64,155.62,3.213]
[1724769259577,0.04332187,155.64,155.61,0.048792]
[1724769259974,0.04332187,155.64,155.61,3.261892]
[1724769260179,0.04332187,155.64,155.61,0.048792]
[1724769260871,0.04332187,155.64,155.63,3.2129]
[1724769261382,0.04332187,155.64,155.62,3.213]
[1724769261882,0.04332187,155.64,155.61,0.048792]
[1724769263375,0.04332187,155.64,155.61,3.261992]
[1724769263572,0.04332187,155.64,155.61,0.048792]
[1724769263780,0.04332187,155.64,155.62,3.213]
[1724769264674,0.04332187,155.64,155.61,0.048792]
[1724769264675,0.04332187,155.64,155.61,3.261992]
[1724769265481,0.04332187,155.64,155.62,3.2131]
[1724769265674,0.04332187,155.64,155.61,0.048792]
[1724769266076,0.04332187,155.64,155.61,3.261992]
[1724769268385,3.14111218,155.75,155.62,3.18605398]
[1724769268686,1.2523,155.75,155.66,24.69]
[1724769268987,5.7242,155.79,155.74,3.2105]
[1724769269180,2.5145,155.79,155.68,24.69]
[1724769269383,0.04199266,155.75,155.72,0.04559254]
[1724769270180,0.04199266,155.75,155.74,3.2106]
[1724769272186,0.04199266,155.75,155.73,3.2107]